Cogmind - Beta 16 @@@ ROGUE MODE // 2025.10.24 @ 10:40:30 Player: Anting Result: Destroyed by D-53 Grenadier with Mini Grenade Launcher Performance ------------- Evolutions (0) 0 Regions Visited (2) 400 Robots Destroyed (33) 165 Value Destroyed (553) 553 Prototype IDs (0) 0 Alien Tech Used (0) 0 Bonus (0) 0 TOTAL SCORE: 1118 Bonus ------- None Cogmind --------- Core Integrity 0/250 Matter 240/300 Energy 100/100 System Corruption 0% Temperature Cool (25) Movement Core (850) Ox16 Location -10/Mines Parts ------- > --- POWER (1) -------- (None) > --- PROPULSION (2) --- Aluminum Leg > --- UTILITY (2) ------ High-capacity Storage Unit Seismic Detector > --- WEAPON (2) ------- Improved Light Cannon Improved Light Cannon > --- INVENTORY (20) --- Light Treads Light Treads Light Treads Light Treads Light Treads Improved Heat Sink Large Matter Pod (150) Heavy EM Pulse Gun Heavy EM Pulse Gun Heavy EM Pulse Gun Heavy EM Pulse Gun Light Assault Rifle Light Assault Rifle Light Assault Rifle Improved Light Cannon Grenade Launcher Grenade Launcher Datajack Peak State ------------ > --- POWER ------------ Fission Core > --- PROPULSION ------- Aluminum Leg Aluminum Leg > --- UTILITY ---------- High-capacity Storage Unit Seismic Detector > --- WEAPON ----------- Improved Light Cannon Improved Light Cannon > --- INVENTORY -------- Light Treads Light Treads Light Treads Light Treads Light Treads Light Treads Improved Heat Sink Large Matter Pod Heavy EM Pulse Gun Heavy EM Pulse Gun Heavy EM Pulse Gun Heavy EM Pulse Gun Light Assault Rifle Light Assault Rifle Light Assault Rifle Improved Light Cannon Improved Light Cannon Grenade Launcher Grenade Launcher Datajack [Rating: 15] Favorites ----------- Power Ion Engine Engine Ion Engine Power Core Fission Core Propulsion Aluminum Leg Treads Light Treads Leg Aluminum Leg Utility Seismic Detector Device Seismic Detector Storage High-capacity Storage Unit Weapon Light Assault Rifle Energy Gun Small Laser Ballistic Gun Light Assault Rifle Ballistic Cannon Improved Light Cannon Launcher Grenade Launcher Build | -11 -10 -10 ------- Run | Yrd Mat Min Slots Evolved . | . . . Power . | . . . Propulsion . | . . . Utility . | . . . Weapon . | . . . Parts Attached 22 | 9 6 7 Power 2 | 1 . 1 Engine 1 | 1 . . Core 1 | . . 1 Reactor . | . . . Propulsion 6 | 3 2 1 Treads 2 | 1 . 1 Leg 4 | 2 2 . Wheel . | . . . Hover . | . . . Flight . | . . . Utility 4 | 2 2 . Device 2 | 1 1 . Storage 2 | 1 1 . Processor . | . . . Hackware . | . . . Protection . | . . . Artifact . | . . . Weapon 10 | 3 2 5 Energy Gun 1 | 1 . . Energy Cannon . | . . . Ballistic Gun 5 | 2 1 2 Ballistic Cannon 3 | . . 3 Launcher 1 | . 1 . Special Weapon . | . . . Impact Weapon . | . . . Slashing Weapon . | . . . Piercing Weapon . | . . . Special Melee Weapon . | . . . Unidentified Prototypes . | . . . Parts Lost 6 | . . 6 Power 2 | . . 2 Propulsion 2 | . . 2 Utility . | . . . Weapon 2 | . . 2 Highest Loss Streak 4 | . . 4 To Critical Strikes . | . . . Average Backups 14 | 3 11 19 Power . | . . . Propulsion 4 | 1 3 5 Utility 1 | . 1 2 Weapon 7 | . 5 10 Tool/Special . | . . . Unused Backups 14 | . 2 12 Power 1 | . 1 . Propulsion 4 | . . 4 Utility 1 | . . 1 Weapon 7 | . 1 6 Tool/Special 1 | . . 1 Average Slot Usage (%) 99 | . 100 99 Engine 12 | . 14 9 Core 1 | . . 4 Leg 27 | . 28 27 Device 14 | . 14 14 Storage 14 | . 14 14 Ballistic Gun 26 | . 27 25 Peak Build Rating 15 | 7 10 15 Average Rating 9 | 5 8 10 On Entrance 5 | . 7 10 Avg Prop Armor Cover (%) . | . . . Naked Turns . | . . . Heaviest Build 55 | 14 49 55 Greatest Support 20 | 20 20 20 Greatest Overweight (x) 2 | 1 2 2 Average Overweight (x) 1 | . 1 2 Largest Inventory Capacity 20 | 8 20 20 Average Capacity 17 | 7 15 20 Most Carried 20 | 4 20 20 Average Carried 14 | 3 11 19 Final Capacity 20 | 8 20 20 Final Carried 20 | 4 20 18 Class Distribution -------------------- 94% | Mutant 5% | Scavenger-Mutant Dominant Class ---------------- Mutant | -10/Materials Mutant | -10/Mines Resources | -11 -10 -10 ----------- Run | Yrd Mat Min Matter Collected 1010 | 302 466 242 Remotely . | . . . Salvage Created 985 | 88 590 307 Parts 69 | 10 35 24 Haulers Intercepted 2 | . 2 . Recyclers Shooed 3 | . 2 1 Parts Field Recycled . | . . . Retrieved Matter . | . . . Parts Self-Destructed . | . . . Prevented . | . . . Parts Restored . | . . . Kills | -11 -10 -10 ------- Run | Yrd Mat Min Combat Hostiles Destroyed 26 | . 10 16 Guns 14 | . 10 4 Cannons 1 | . . 1 AOE 11 | . . 11 Classes Destroyed 11 | 2 6 3 Worker 1 | . 1 . Builder 1 | . . 1 Tunneler 2 | 2 . . Hauler 2 | . 2 . Recycler 3 | 1 . 2 Operator 1 | . 1 . Watcher 3 | . 3 . Swarmer 12 | . 3 9 Grunt 7 | . 7 . Demolisher 1 | . . 1 Assembled 6 | . . 6 Best Kill Streak 7 | 3 3 7 Combat Bots Only 6 | . 3 6 Max Kills in Single Turn 3 | 1 1 3 Gunslinging . | . . . Exploded 3 | . . 3 Melee . | . . . Uniques/NPCs Destroyed . | . . . Combat | -11 -10 -10 -------- Run | Yrd Mat Min Hostile Shots Fired 107 | . 46 61 Missed 27 | . 11 16 Hits 80 | . 35 45 Melee 4 | . . 4 Projectile 76 | . 35 41 AOE 14 | . . 14 Part Disruptions 1 | . . 1 Damage Taken 1340 | . 403 937 Core 264 | . 104 160 Absorbed by Shields . | . . . Core Remaining (%) 100 | 100 . . Volleys Fired 98 | 3 67 28 Largest 2 | 2 2 2 Hottest 66 | 40 40 66 Shots Fired 184 | 6 132 46 Gun 162 | 6 130 26 Cannon 10 | . . 10 Launcher 12 | . 2 10 Special . | . . . Kinetic 172 | 6 130 36 Thermal . | . . . Explosive 12 | . 2 10 Electromagnetic . | . . . Robot Hit Streak 17 | 3 17 7 Robot Miss Streak 5 | 1 5 3 Penetration Max . | . . . Secondary Targets . | . . . Shots Hit Robots 106 | 3 78 25 Core Hits 68 | 5 32 31 Critical Kills . | . . . Critical Parts Destroyed 1 | . 1 . Critical Strikes 2 | . 1 1 Destroy 1 | . 1 . Blast 1 | . . 1 Melee Attacks . | . . . Impact . | . . . Slashing . | . . . Piercing . | . . . Sneak Attacks . | . . . Combat Hostiles . | . . . Follow-up Attacks . | . . . Damage Inflicted 1857 | 50 942 865 Guns 1049 | 50 859 140 Cannons 120 | . . 120 Explosions 662 | . 64 598 Melee . | . . . Ramming 26 | . 19 7 Kinetic 1169 | 50 859 260 Thermal . | . . . Explosive 662 | . 64 598 Electromagnetic . | . . . Impact . | . . . Slashing . | . . . Piercing . | . . . Highest Corruption . | . . . Average Corruption . | . . . Corruption Purged . | . . . Corruption Blocked . | . . . Overload Shots . | . . . Overflow Damage 10 | . . 10 Projectiles . | . . . Explosions 10 | . . 10 Melee . | . . . Knockbacks 1 | . . 1 Impact . | . . . Kinetic 1 | . . 1 Secondary . | . . . Self-Inflicted Damage 54 | . 8 46 Shots 4 | . 1 3 Rammed . | . . . Targets Rammed 7 | . 5 2 Kicked 7 | . 5 2 Crushed . | . . . Highest Temperature 43 | . 18 43 Average Temperature 13 | . 8 15 Received Heat Transfer 261 | . 201 60 Siege Activations . | . . . Martial Activations . | . . . Shielding Activations . | . . . Robots Disrupted . | . . . Combat Hostiles . | . . . Robots Corrupted . | . . . Combat Hostiles . | . . . Parts Fried . | . . . Impact Corruptions . | . . . Robots Melted . | . . . Combat Hostiles . | . . . Parts Melted . | . . . Heat Transferred . | . . . Parts Sabotaged . | . . . Parts Stolen . | . . . Parts Stripped . | . . . Power Chain Reactions . | . . . Alert | -11 -10 -10 ------- Run | Yrd Mat Min Maximum Alert Level 1 | . . 1 Low Security (%) 99 | 100 100 99 Level 1 . | . . . Level 2 . | . . . Level 3 . | . . . Level 4 . | . . . Level 5 . | . . . High Security . | . . . Max Security . | . . . Peak Influence 200 | 10 114 200 Initial 35 | . . 35 Average 40 | 1 34 52 Influence Increases 773 | 15 427 331 Destroy 0b10 Robot/C 400 | . 200 200 Destroy 0b10 Robot/NC 70 | 15 35 20 Destroy Leader 90 | . 60 30 Successful Hack 16 | . 16 . Select Force Hacks 60 | . 60 . Disable Machine 15 | . . 15 Destroy Structure 47 | . 11 36 Lose Combat Pursuer 75 | . 45 30 Influence Decreases 632 | 15 335 282 Entered New Map 57 | . . 57 Time Decay 522 | 15 335 172 Lost Part 53 | . . 53 Squads Dispatched 3 | . 3 . Investigation 2 | . 2 . Extermination . | . . . Reinforcement 1 | . 1 . Assault . | . . . Garrison . | . . . Intercept . | . . . Searches Triggered . | . . . Construction Impeded . | . . . Haulers Reinforced . | . . . Active Scanning Responses . | . . . Cargo Convoy Interrupts . | . . . Stealth | -11 -10 -10 --------- Run | Yrd Mat Min Distress Signals 2 | . 2 . Communications Jammed . | . . . Distress Signals . | . . . Times Spotted 46 | . 24 22 Peak Tracking Total 12 | . 3 12 Tactical Retreats 4 | . 2 2 Traps | -11 -10 -10 ------- Run | Yrd Mat Min Traps Triggered . | . . . Indirectly . | . . . Trap Hack Attempts . | . . . Triggered . | . . . Disarmed . | . . . Reprogrammed . | . . . Reused . | . . . Traps Extracted . | . . . Installed . | . . . Triggered . | . . . Machines | -11 -10 -10 ---------- Run | Yrd Mat Min Machines Disabled 1 | . . 1 Max in Single Turn 1 | . . 1 Machines Repaired . | . . . Machines Dismantled . | . . . Machines Sabotaged . | . . . Overloaded Fab Kills . | . . . Hacking | -11 -10 -10 --------- Run | Yrd Mat Min Machines Accessed 8 | . 8 . Terminals 6 | . 6 . Fabricators . | . . . Repair Stations . | . . . Recycling Units 2 | . 2 . Scanalyzers . | . . . Garrison Access . | . . . Total Hacks 20 | . 20 . Successful 10 | . 10 . Failed 10 | . 10 . Catastrophic 2 | . 2 . Database Lockouts . | . . . Manual 20 | . 20 . Terminals 17 | . 17 . Fabricators . | . . . Repair Stations . | . . . Recycling Units 3 | . 3 . Scanalyzers . | . . . Garrison Access . | . . . Terminal Hacks 3 | . 3 . Part Schematic 2 | . 2 . Locate Traps 1 | . 1 . Fabricator Hacks . | . . . Repair Station Hacks . | . . . Recycling Unit Hacks . | . . . Scanalyzer . | . . . Garrison Access Hacks . | . . . Unauthorized Hacks 7 | . 7 . Terminals 5 | . 5 . Skim 5 | . 5 . Fabricators . | . . . Repair Stations . | . . . Recycling Units 2 | . 2 . Tunnel 2 | . 2 . Scanalyzers . | . . . Garrison Access . | . . . Data Cores Recovered . | . . . Used . | . . . Hacking Detections 7 | . 7 . Full Trace Events . | . . . Feedback Events . | . . . Feedback Blocked . | . . . Robot Schematics Acquired . | . . . Robots Built . | . . . Authchips . | . . . Time . | . . . Total Robot Build Rating . | . . . Part Schematics Acquired 2 | . 2 . Parts Built . | . . . Authchips . | . . . Time . | . . . Total Part Build Rating . | . . . Part Studies Acquired . | . . . Parts Repaired . | . . . Time . | . . . Parts Recycled . | . . . Recycled Matter . | . . . Retrieved Matter . | . . . Retrieved Components . | . . . Parts Scanalyzed . | . . . Part Schematics Acquired . | . . . Parts Damaged . | . . . Bothacking | -11 -10 -10 ------------ Run | Yrd Mat Min Used RIF Installer . | . . . Robots Hacked . | . . . Non-combat . | . . . Combat . | . . . Robot Hacks Applied . | . . . Relay Couplers Released . | . . . Fabnet Peak Effective % . | . . . Robots Rewired . | . . . Allies Hacked . | . . . Hacks Repelled . | . . . Allies | -11 -10 -10 -------- Run | Yrd Mat Min Total Allies . | . . . Largest Group . | . . . Highest-Rated Group . | . . . Highest-Rated Ally . | . . . Total Orders . | . . . Ally Attacks . | . . . Total Damage . | . . . Kills . | . . . Allies Corrupted . | . . . Allies Melted . | . . . Intel | -11 -10 -10 ------- Run | Yrd Mat Min Active Infowar (turns) 3997 | 13 2360 1624 Seismic 3997 | 13 2360 1624 Robot Analysis Total . | . . . Derelict Logs Recovered . | . . . Drone Launches . | . . . Drone Recoveries . | . . . Exploration | -11 -10 -10 ------------- Run | Yrd Mat Min Turns Passed 4157 | 80 2453 1624 Spaces Moved 1201 | 47 726 428 Core 5 | 5 . . Treads . | . . . Legs 1196 | 42 726 428 Wheels . | . . . Hover . | . . . Flight . | . . . Fastest Speed 50 | 50 120 260 Average Speed 231 | 117 222 260 Slowest Speed 260 | 190 260 260 Overloaded Moves . | . . . Propulsion Burnouts . | . . . Robots Hopped . | . . . Potential Cave-ins . | . . . Cave-ins Triggered . | . . . Exploration Rate (%) 63 | 4 97 88 Regions Visited 2 Branch Regions 1 Pre-discovered Areas 5 | . 4 1 Known Exits Taken . | . . . Unknown Exits Taken 2 | 1 1 . Scrap Searched 1 | . . 1 Spaces Dug 16 | . 11 5 Terrain Destroyed 61 | . 11 50 Melee . | . . . Projectile . | . . . AOE 61 | . 11 50 Terrain Rammed . | . . . Walls Destroyed . | . . . Machines Disabled . | . . . Actions | -11 -10 -10 --------- Run | Yrd Mat Min Total 2394 | 63 1439 892 Wait 1026 | . 606 420 Move 1199 | 46 725 428 Hop . | . . . Pick Up 23 | 3 19 1 Fast Attach 8 | 8 . . Attach 5 | 1 . 4 Detach 2 | 2 . . Swap 18 | . 10 8 Drop 8 | . 7 1 Fire 98 | 3 67 28 Melee . | . . . Ram . | . . . Kick 7 | . 5 2 Crush . | . . . Escape Stasis . | . . . Rewire . | . . . Trap . | . . . Miscellaneous . | . . . Route ------- -11/Scrapyard -10/Materials (discovered 6 exits: [*Mat x3] / [*Min x2] / [*Sub]) -10/Mines (discovered 2 exits: [*Mat x2]) History --------- Turn | Location | Event 2 | -11/Scrapyard | Met Revision 17 9 | -11/Scrapyard | Discovered new exit (range 16) 81 | -11/Scrapyard | Entered Materials 317 | -10/Materials | Build established: Mutant 821 | -10/Materials | Discovered new exit (range 9) 1036 | -10/Materials | Discovered new exit (range 8) 1137 | -10/Materials | Discovered new exit (range 14) 1641 | -10/Materials | Discovered new exit (range 8) 2099 | -10/Materials | Discovered new exit (range 16) 2297 | -10/Materials | Discovered new exit (range 13) 2324 | -10/Materials | Learned location of Storage (-9) 2348 | -10/Materials | Learned Recycling recycling unit intel 2360 | -10/Materials | Learned Recycling recycling unit intel 2362 | -10/Materials | Learned Storage trap positions 2363 | -10/Materials | Learned location of 3 exits from Materials 2367 | -10/Materials | Learned location of Recycling (-9) 2383 | -10/Materials | Learned location of 1 exit from Storage 2407 | -10/Materials | Learned location of 2 exits from Materials 2534 | -10/Materials | Entered Mines 2850 | -10/Mines | Assembled infested the area 2855 | -10/Mines | Assisted by a Guerilla fighting off Assembled 2874 | -10/Mines | Core integrity fell below 50% 3543 | -10/Mines | Discovered new exit (range 6) 3809 | -10/Mines | Discovered new exit (range 11) 4142 | -10/Mines | Core integrity fell below 20% 4158 | -10/Mines | Destroyed by D-53 Grenadier with Mini Grenade Launcher Last Messages --------------- 03951_ Searching scrap... 03951_ Found EM Pulse Gun. 03951_ Found Core Shielding. 03951_ Found 33 Matter. 03952_ Acquired 9 matter. 04072_ K-01 Serf cleans the Matter Pump. 04139_ R-06 Scavenger destroyed. 04140_ K-01 Serf cleans the Matter Pump. 04141_ Matter Pump disabled. 04143_ R-06 Scavenger destroyed. 04146_ Aluminum Leg destroyed. 04147_ K-01 Serf collects debris. 04148_ D-53 Grenadier knocked back. 04152_ Imp. Light Cannon destroyed. 04154_ Lgt. Treads destroyed. 04155_ D-53 Grenadier suffers critical hit (Blast). 04155_ D-53 Grenadier destroyed. 04156_ K-01 Serf collects debris. 04156_ Fission Core destroyed. Map ----- +----------------------------------------------------+ | #????????# ####?###### ## | | ##???????# ### # ##### | | #???????# ##??## | | #???????## ## % #???# | | #???????## #### ### ## [ | ###?# | | #?????### #??# ##?# ## ### | | #????## #?## #??# ##### # ### | | #????# ##?# #??######??## ### ### | | #???## ###??# ##???????????###?### #?? | | ##?## ##????# ###??????????????????# ##?? | | ### #?????# #######??????????????### #### | | ####### ## ##???????????????## # | | #######??????????# # | | ######### ##?????????#### # | | ##???????## #?????####??## # | | ####?????????## #????## #### # | | ####?????????????## #???## ## # | | #?????????????????###### #???# ## | | #??????????????????????## ##???# < ## | | ###???????????????????????## #????# # | | ?????????????????############t #????## # | | ?????????????????# ## # #?????# ### ## | | ?????????????????# ##?????## ##?####? | | ????????????????## ##??????## #??????? | | ??????????????### ####????# #??????? | | ?????????????## k @ ##???# #??????? | | ?????????????# !% #???# #??????? | | ?????????????# %%""% #???# #??????? | | ?????????????# """ #???#%######?? | | ????????????# """ * #???# ## ##? | | ?????????? d ## ##### ## #? | | ????????? ## #### ## ## ## #? | | ??????? #?## ##??# ##?# ## ### " ## | | ????? ### ???#####???## ##???## ## #?## # | | ???? ???#?????????????####?????# ## #??## # | | ?????####???????????????????????????# #??## # | | ????????????????????????????????????# ####??# # | | ????????????????????????????????????# #????## | | ????????????????????????????????????# %###### | | ??????????????????????####??????????# # | | ?????????????????????? #??????????# ## | | ??????????????????????# #???????########## ##? | | ??????????????????????# #??????## ###?# ###? | | ##### #??????????????# #??????# ## # ###?? | | # #????###?????### #??????# ### #?#?? | | # #### #???# ##????# #??????## ## ##### | | # #???????# #????# #???????## # | | # #??????## #????# #????????## =% | | #????### #?????" #?????????## * | | #???## #?????" ##?????????# ## | +----------------------------------------------------+ Best States ------------- Heat Dissipation 39 Energy Generation 18 Energy Capacity 310 Matter Stores 300 Matter Capacity 300 Sight Range 16 Terrain Scan Density 10 Evasion (%) 55 Recoil Reduction 1 Item Schematics ----------------- Hcp. Storage Unit | -10/Materials | Hacked Huge Storage Unit | -10/Materials | Hacked Robot Schematics ------------------ None Fabricated ------------ Nothing Repaired ---------- Nothing Studied --------- None Alien Tech Used ----------------- None Achievements -------------- You Again Challenges ------------ None Game ------ Seed TrapPlatingBeamcaster Manual? 0 Play Time 00:12:09 Cumulative 322.6 hours Start 2025.10.24 @ 10:28:35 End 2025.10.24 @ 10:40:30 Sessions 1 Manual Loads 0 Difficulty Rogue Special Mode None Game No. 229 Rogue 229 Adventurer 0 Explorer 0 Win Type - Total 20 Types 9/0/6/1/1/0/1/1/0/1 Lore% 82 Gallery% 76 Achievement% 54 Wizard Run 0 Options --------- Layout 1 ASCII 0 Keyboard 0 Movement Mouse Keybinds 0 Fullscreen 2 Font 24/Smallcaps Map View 50x35 Zoom Use 0% Tactical HUD 1 Map Filters NONE Filters NONE Steam 1 RUN: 82cb5e3c-25ba-4f3d-9049-2dc2a3dbc1ed